fUSD/lending_fUSD_20241219
["ID","MTS","AMOUNT","RATE_DAILY","PERIOD"]
[346002409,1734619835738,-1155.02,0.00021917,4]
[346002410,1734619835747,-500.0,0.00021917,4]
[346002411,1734619835757,-526.64,0.00021917,4]
[346002412,1734619835767,-500.0,0.00021917,2]
[346002413,1734619835782,-692.32,0.00021917,4]
[346002414,1734619835792,-1941.22,0.00021917,4]
[346002415,1734619835802,-1443.45,0.00021917,4]
[346002416,1734619835811,-500.0,0.00021917,4]
[346002417,1734619835820,-500.0,0.00021917,4]
[346002418,1734619835830,-500.0,0.00021917,4]
[346002419,1734619835839,-4671.05,0.00021917,4]
[346002420,1734619835848,-500.0,0.00021917,4]
[346002421,1734619835858,-666.18,0.00021917,4]
[346002422,1734619835868,-480.4043,0.00021917,4]
[346002423,1734619835877,-500.0,0.00021917,4]
[346002424,1734619835887,-500.0,0.00021917,4]
[346002425,1734619835897,-500.0,0.00021917,4]
[346002426,1734619835908,-500.0,0.00021917,4]
[346002427,1734619835917,-500.0,0.00021917,4]
[346002428,1734619835927,-500.0,0.00021917,4]
[346002429,1734619835936,-507.17,0.00021917,4]
[346002430,1734619835945,-500.0,0.00021917,4]
[346002431,1734619835956,-500.0,0.00021917,4]
[346002432,1734619835967,-500.0,0.00021917,4]
[346002433,1734619835977,-500.0,0.00021917,4]
[346002434,1734619835986,-500.0,0.00021917,4]
[346002435,1734619835996,-500.0,0.00021917,4]
[346002436,1734619836006,-638.36,0.00021917,4]
[346002437,1734619836014,-500.0,0.00021917,4]
[346002438,1734619836027,-500.0,0.00021917,4]
[346002439,1734619836037,-500.0,0.00021917,4]
[346002440,1734619836046,-613.45,0.00021917,4]
[346002441,1734619836056,-500.0,0.00021917,4]
[346002442,1734619836065,-583.42,0.00021917,4]
[346002443,1734619836075,-500.0,0.00021917,4]
[346002444,1734619836085,-1342.63,0.00021917,4]
[346002445,1734619836094,-925.35,0.00021917,4]
[346002446,1734619836103,-500.0,0.00021917,4]
[346002447,1734619836112,-552.75,0.00021917,4]
[346002448,1734619836122,-500.0,0.00021917,4]
[346002449,1734619836132,-500.0,0.00021917,4]
[346002450,1734619836142,-592.13,0.00021917,4]
[346002451,1734619836151,-500.0,0.00021917,4]
[346002452,1734619836161,-500.0,0.00021917,4]
[346002453,1734619836171,-2339.55,0.00021917,4]
[346002454,1734619836181,-500.0,0.00021917,4]
[346002455,1734619836191,-500.0,0.00021917,4]
[346002456,1734619836200,-419.61600434,0.00021917,4]
[346002457,1734619836210,-500.0,0.00021917,4]
[346002458,1734619836219,-500.0,0.00021917,4]
[346002459,1734619836228,-500.0,0.00021917,4]
[346002460,1734619836237,-1038.07,0.00021917,4]
[346002461,1734619836247,-500.0,0.00021917,4]
[346002462,1734619836256,-500.0,0.00021917,4]
[346002463,1734619836266,-500.0,0.00021917,4]
[346002464,1734619836280,-1573.39,0.00021917,4]
[346002465,1734619836290,-500.0,0.00021917,4]
[346002466,1734619836299,-1000.0,0.00021917,4]
[346002467,1734619836309,-500.0,0.00021917,4]
[346002468,1734619836318,-500.0,0.00021917,4]
[346002469,1734619836328,-500.0,0.00021917,4]
[346002470,1734619836339,-500.0,0.00021917,4]
[346002471,1734619836348,-500.0,0.00021917,4]
[346002472,1734619836358,-500.0,0.00021917,4]
[346002473,1734619836368,-500.0,0.00021917,4]
[346002474,1734619836378,-965.55,0.00021917,4]
[346002475,1734619836389,-500.0,0.00021917,4]
[346002476,1734619836398,-1681.79,0.00021917,4]
[346002477,1734619836408,-1067.32,0.00021917,4]
[346002478,1734619836417,-500.0,0.00021917,4]
[346002479,1734619836427,-1437.18,0.00021917,4]
[346002480,1734619836438,-2714.35,0.00021917,4]
[346002481,1734619836451,-500.0,0.00021917,4]
[346002482,1734619836461,-500.0,0.00021917,4]
[346002483,1734619836470,-1379.44,0.00021917,4]
[346002484,1734619836479,-1000.0,0.00021917,2]
[346002485,1734619836489,-500.0,0.00021917,4]
[346002486,1734619836498,-500.0,0.00021917,4]
[346002487,1734619836506,-500.0,0.00021917,4]
[346002488,1734619836516,-500.0,0.00021917,4]
[346002489,1734619836528,-753.13,0.00021917,4]
[346002490,1734619836537,-500.0,0.00021917,4]
[346002491,1734619836546,-500.0,0.00021917,4]
[346002492,1734619836554,-500.0,0.00021917,4]
[346002493,1734619836563,-500.0,0.00021917,4]
[346002494,1734619836572,-500.0,0.00021917,4]
[346002495,1734619836581,-1073.6,0.00021917,4]
[346002496,1734619836591,-1094.17,0.00021917,4]
[346002497,1734619836600,-500.0,0.00021917,4]
[346002498,1734619836609,-1087.63,0.00021917,4]
[346002499,1734619836619,-500.0,0.00021917,4]
[346002500,1734619836628,-500.0,0.00021917,4]
[346002501,1734619836637,-500.0,0.00021917,4]
[346002502,1734619836647,-500.0,0.00021917,4]
[346002503,1734619836656,-1456.56,0.00021917,4]
[346002504,1734619836666,-500.0,0.00021917,4]
[346002505,1734619836676,-594.1,0.00021917,4]
[346002506,1734619836685,-500.0,0.00021917,4]
[346002507,1734619836695,-500.0,0.00021917,4]
[346002508,1734619836705,-500.0,0.00021917,4]
[346002509,1734619836714,-500.0,0.00021917,4]
[346002510,1734619836723,-500.0,0.00021917,4]
[346002511,1734619836733,-500.0,0.00021917,4]
[346002512,1734619836742,-581.11,0.00021917,4]
[346002513,1734619836752,-500.0,0.00021917,4]
[346002514,1734619836761,-500.0,0.00021917,4]
[346002515,1734619836774,-500.0,0.00021917,4]
[346002516,1734619836783,-2776.06,0.00021917,4]
[346002517,1734619836792,-500.0,0.00021917,4]
[346002518,1734619836802,-500.0,0.00021917,4]
[346002519,1734619836811,-545.99,0.00021917,4]
[346002520,1734619836821,-1708.04,0.00021917,4]
[346002521,1734619836830,-500.0,0.00021917,4]
[346002522,1734619836840,-500.0,0.00021917,4]
[346002523,1734619836850,-500.0,0.00021917,4]
[346002524,1734619836858,-500.0,0.00021917,4]
[346002525,1734619836868,-500.0,0.00021917,4]
[346002526,1734619836878,-500.0,0.00021917,4]
[346002527,1734619836888,-398.06922649,0.00021917,4]
[346002528,1734619836897,-1364.7,0.00021917,4]
[346002529,1734619836906,-500.0,0.00021917,4]
[346002530,1734619836916,-500.0,0.00021917,4]
[346002531,1734619836925,-500.0,0.00021917,4]
[346002532,1734619836934,-500.0,0.00021917,4]
[346002533,1734619836943,-655.37,0.00021917,4]
[346002534,1734619836952,-500.0,0.00021917,4]
[346002535,1734619836962,-1161.39,0.00021917,4]
[346002536,1734619836971,-500.0,0.00021917,4]
[346002537,1734619836980,-500.0,0.00021917,4]
[346002538,1734619836989,-516.6,0.00021917,4]
[346002539,1734619837000,-500.0,0.00021917,4]
[346002540,1734619837010,-500.0,0.00021917,4]
[346002541,1734619837019,-556.79,0.00021917,4]
[346002542,1734619837032,-500.0,0.00021973,2]
[346002543,1734619837040,-500.0,0.00021973,2]
[346002544,1734619837050,-209.0,0.0002204,2]
[346002545,1734619837059,-150.0,0.00022044,4]
[346002546,1734619837069,-150.0,0.00022044,4]
[346002547,1734619837079,-150.00000001,0.00022044,4]
[346002548,1734619837088,-150.0,0.00022044,4]
[346002549,1734619837097,-250.0,0.00022108,2]
[346002550,1734619837107,-19822.80890349,0.00022137,2]
[346002551,1734619837116,-509.69,0.00022164,2]
[346002552,1734619837125,-494.38,0.00022164,2]
[346002553,1734619837134,-496.75,0.00022164,2]
[346002554,1734619837144,-493.99,0.00022164,2]
[346002555,1734619837153,-500.0,0.00022173,2]
[346002556,1734619837162,-542.773,0.00022188,2]
[346002557,1734619837171,-3718.63,0.00022188,2]
[346002558,1734619837180,-150.0,0.00022188,2]
[346002559,1734619837189,-412.864373,0.00022191,4]
[346002560,1734619837198,-194.309338,0.00022191,4]
[346002561,1734619837207,-500.0,0.00022191,4]
[346002562,1734619837217,-500.0,0.00022191,4]
[346002563,1734619837227,-500.0,0.00022191,4]
[346002564,1734619837236,-504.32227817,0.00022191,4]
[346002565,1734619837245,-500.0,0.00022191,4]
[346002566,1734619837254,-500.0,0.00022191,4]
[346002567,1734619837263,-500.0,0.00022191,4]
[346002568,1734619837275,-500.0,0.00022191,4]
[346002569,1734619837285,-500.0,0.00022191,4]
[346002570,1734619837294,-500.0,0.00022191,4]
[346002571,1734619837303,-512.93919554,0.00022191,4]
[346002572,1734619837313,-500.0,0.00022191,4]
[346002573,1734619837322,-500.0,0.00022191,4]
[346002574,1734619837331,-500.0,0.00022191,4]
[346002575,1734619837341,-500.0,0.00022191,4]
[346002576,1734619837350,-500.0,0.00022191,4]
[346002577,1734619837360,-500.0,0.00022191,4]
[346002578,1734619837369,-501.03783031,0.00022191,4]
[346002579,1734619837379,-500.0,0.00022191,4]
[346002580,1734619837388,-500.0,0.00022191,4]
[346002581,1734619837398,-500.0,0.00022191,4]
[346002582,1734619837408,-504.34180034,0.00022191,4]
[346002583,1734619837417,-500.0,0.00022191,4]
[346002584,1734619837427,-500.0,0.00022191,4]
[346002585,1734619837438,-500.0,0.00022191,4]
[346002586,1734619837451,-500.0,0.00022191,4]
[346002587,1734619837460,-500.0,0.00022191,4]
[346002588,1734619837470,-500.0,0.00022191,4]
[346002589,1734619837481,-500.0,0.00022191,4]
[346002590,1734619837490,-500.0,0.00022191,4]
[346002591,1734619837500,-500.0,0.00022191,4]
[346002592,1734619837510,-349.54223877,0.00022191,4]
[346002593,1734619837519,-500.0,0.00022191,4]
[346002594,1734619837532,-500.0,0.00022191,4]
[346002595,1734619837541,-500.0,0.00022191,4]
[346002596,1734619837550,-500.0,0.00022191,4]
[346002597,1734619837559,-500.0,0.00022191,4]
[346002598,1734619837568,-489.31147604,0.00022191,4]
[346002599,1734619837577,-500.0,0.00022191,4]
[346002600,1734619837586,-500.0,0.00022191,4]
[346002602,1734619837596,-500.0,0.00022191,4]
[346002603,1734619837605,-561.6885623,0.00022191,4]
[346002604,1734619837614,-500.0,0.00022191,4]
[346002605,1734619837623,-611.91272022,0.00022191,4]
[346002606,1734619837632,-500.0,0.00022191,4]
[346002607,1734619837642,-500.0,0.00022191,4]
[346002608,1734619837651,-500.0,0.00022191,4]
[346002609,1734619837661,-500.0,0.00022191,4]
[346002610,1734619837670,-500.0,0.00022191,4]
[346002611,1734619837679,-500.0,0.00022191,4]
[346002612,1734619837688,-500.0,0.00022191,4]
[346002613,1734619837696,-500.0,0.00022191,4]
[346002614,1734619837705,-568.48,0.00022191,4]
[346002615,1734619837715,-500.0,0.00022191,4]
[346002616,1734619837724,-500.0,0.00022191,4]
[346002617,1734619837733,-500.0,0.00022191,4]
[346002618,1734619837742,-500.0,0.00022191,4]
[346002619,1734619837752,-500.0,0.00022191,4]
[346002620,1734619837762,-500.0,0.00022191,4]
[346002621,1734619837774,-500.0,0.00022191,4]
[346002622,1734619837784,-500.0,0.00022191,4]
[346002623,1734619837794,-642.71,0.00022191,4]
[346002624,1734619837803,-500.0,0.00022191,4]
[346002625,1734619837813,-533.56,0.00022191,4]
[346002626,1734619837822,-500.0,0.00022191,4]
[346002627,1734619837832,-500.0,0.00022191,4]
[346002628,1734619837842,-722.07,0.00022191,4]
[346002629,1734619837852,-500.0,0.00022191,4]
[346002630,1734619837861,-500.0,0.00022191,4]
[346002631,1734619837871,-500.0,0.00022191,4]
[346002632,1734619837881,-531.54,0.00022191,4]
[346002633,1734619837891,-508.2,0.00022191,4]
[346002634,1734619837900,-500.0,0.00022191,4]
[346002635,1734619837910,-500.0,0.00022191,4]
[346002636,1734619837920,-636.45536815,0.00022191,4]
[346002637,1734619837931,-500.0,0.00022191,4]
[346002638,1734619837941,-500.0,0.00022191,4]
[346002639,1734619837951,-500.0,0.00022191,4]
[346002640,1734619837962,-744.53,0.00022191,4]
[346002641,1734619837972,-500.0,0.00022191,4]
[346002642,1734619837982,-500.0,0.00022191,4]
[346002643,1734619837991,-500.0,0.00022191,4]
[346002644,1734619838001,-564.3,0.00022191,4]
[346002645,1734619838011,-500.0,0.00022191,4]
[346002646,1734619838021,-500.0,0.00022191,4]
[346002647,1734619838034,-500.0,0.00022191,4]
[346002648,1734619838044,-500.0,0.00022191,4]
[346002649,1734619838054,-500.0,0.00022191,4]
[346002650,1734619838064,-500.0,0.00022191,4]
[346002651,1734619838074,-500.0,0.00022191,4]
[346002652,1734619838084,-500.0,0.00022191,4]
[346002653,1734619838094,-500.0,0.00022191,4]
[346002654,1734619838104,-500.0,0.00022191,4]
[346002655,1734619838114,-500.0,0.00022191,4]
[346002656,1734619838124,-5.74455282,0.00022191,4]
[346002657,1734619838146,-494.25544718,0.00022191,4]
[346002658,1734619838156,-868.35,0.00022191,4]
[346002659,1734619838165,-500.0,0.00022191,4]
[346002660,1734619838175,-500.0,0.00022191,4]
[346002661,1734619838185,-500.0,0.00022191,4]
[346002662,1734619838195,-500.0,0.00022191,4]
[346002663,1734619838204,-500.0,0.00022191,4]
[346002664,1734619838214,-638.30060991,0.00022191,2]
[346002665,1734619838224,-500.0,0.00022191,4]
[346002666,1734619838233,-500.0,0.00022191,4]
[346002667,1734619838243,-500.0,0.00022191,4]
[346002668,1734619838253,-500.0,0.00022191,4]
[346002669,1734619838262,-554.96,0.00022191,4]
[346002670,1734619838276,-500.0,0.00022191,4]
[346002671,1734619838286,-500.0,0.00022191,4]
[346002672,1734619838296,-500.0,0.00022191,4]
[346002673,1734619838306,-783.95,0.00022191,4]
[346002674,1734619838316,-500.0,0.00022191,4]
[346002675,1734619838326,-500.0,0.00022191,4]
[346002676,1734619838336,-500.0,0.00022191,4]
[346002677,1734619838346,-500.0,0.00022191,4]
[346002678,1734619838356,-527.81,0.00022191,4]
[346002679,1734619838366,-500.0,0.00022191,4]
[346002680,1734619838376,-500.0,0.00022191,4]
[346002681,1734619838387,-500.0,0.00022191,4]
[346002682,1734619838396,-500.0,0.00022191,4]
[346002683,1734619838406,-500.0,0.00022191,4]
[346002684,1734619838416,-500.0,0.00022191,4]
[346002685,1734619838426,-500.0,0.00022191,4]
[346002686,1734619838436,-500.0,0.00022191,4]
[346002687,1734619838450,-500.0,0.00022191,4]
[346002688,1734619838459,-500.0,0.00022191,4]
[346002689,1734619838469,-500.0,0.00022191,4]
[346002690,1734619838479,-500.0,0.00022191,4]
[346002691,1734619838488,-500.0,0.00022191,4]
[346002692,1734619838499,-500.0,0.00022191,4]
[346002693,1734619838509,-500.0,0.00022191,4]
[346002694,1734619838520,-500.0,0.00022191,4]
[346002695,1734619838534,-687.78,0.00022191,4]
[346002696,1734619838544,-500.0,0.00022191,4]
[346002697,1734619838554,-500.0,0.00022191,4]
[346002698,1734619838564,-500.0,0.00022191,4]
[346002699,1734619838573,-500.0,0.00022191,4]
[346002700,1734619838582,-500.0,0.00022191,4]
[346002701,1734619838592,-540.65753669,0.00022191,4]
[346002702,1734619838602,-500.0,0.00022191,4]
[346002703,1734619838611,-500.0,0.00022191,4]
[346002704,1734619838620,-500.0,0.00022191,4]
[346002705,1734619838629,-500.0,0.00022191,4]
[346002706,1734619838639,-500.0,0.00022191,4]
[346002707,1734619838648,-500.0,0.00022191,4]
[346002708,1734619838657,-500.0,0.00022191,4]
[346002709,1734619838667,-500.0,0.00022191,4]
[346002710,1734619838677,-500.0,0.00022191,4]
[346002711,1734619838688,-500.0,0.00022191,4]
[346002712,1734619838698,-500.0,0.00022191,4]
[346002713,1734619838707,-500.0,0.00022191,4]
[346002714,1734619838716,-743.16,0.00022191,4]
[346002715,1734619838727,-533.38,0.00022191,4]
[346002716,1734619838736,-568.95,0.00022191,4]
[346002717,1734619838746,-500.0,0.00022191,4]
[346002718,1734619838756,-500.0,0.00022191,4]
[346002719,1734619838766,-648.39,0.00022191,4]
[346002720,1734619838783,-1319.11,0.00022191,4]
[346002721,1734619838793,-500.0,0.00022191,4]
[346002722,1734619838803,-500.0,0.00022191,4]
[346002723,1734619838813,-500.0,0.00022191,4]
[346002724,1734619838823,-500.0,0.00022191,4]
[346002725,1734619838833,-500.0,0.00022191,4]
[346002726,1734619838843,-500.0,0.00022191,4]
[346002727,1734619838853,-500.0,0.00022191,4]
[346002728,1734619838863,-1159.25,0.00022191,4]
[346002729,1734619838873,-500.0,0.00022191,4]
[346002730,1734619838883,-1355.2,0.00022191,4]
[346002731,1734619838893,-500.0,0.00022191,4]
[346002732,1734619838902,-500.0,0.00022191,4]
[346002733,1734619838912,-500.0,0.00022191,4]
[346002734,1734619838921,-2439.02,0.00022191,4]
[346002735,1734619838932,-500.0,0.00022191,4]
[346002736,1734619838942,-1110.6,0.00022191,4]
[346002737,1734619838951,-500.0,0.00022191,4]
[346002738,1734619838961,-500.0,0.00022191,4]
[346002739,1734619838971,-500.0,0.00022191,4]
[346002740,1734619838981,-500.0,0.00022191,4]
[346002741,1734619838991,-500.0,0.00022191,4]
[346002742,1734619839000,-620.85,0.00022191,4]
[346002743,1734619839010,-500.0,0.00022191,4]
[346002744,1734619839019,-781.0,0.00022191,4]
[346002745,1734619839034,-941.86,0.00022191,4]
[346002746,1734619839043,-857.05,0.00022191,4]
[346002747,1734619839054,-508.38,0.00022191,4]
[346002748,1734619839064,-500.0,0.00022191,4]
[346002749,1734619839074,-500.0,0.00022191,4]
[346002750,1734619839084,-749.03,0.00022191,4]
[346002751,1734619839094,-500.0,0.00022191,4]
[346002752,1734619839104,-500.0,0.00022191,4]
[346002753,1734619839114,-500.0,0.00022191,4]
[346002754,1734619839124,-569.58,0.00022191,4]
[346002755,1734619839133,-523.73170403,0.00022191,4]
[346002756,1734619839143,-1379.54,0.00022191,4]
[346002757,1734619839153,-582.13,0.00022191,4]
[346002758,1734619839164,-500.0,0.00022191,4]
[346002759,1734619839174,-664.17,0.00022191,4]
[346002760,1734619839184,-500.0,0.00022191,4]
[346002761,1734619839194,-1288.35,0.00022191,4]
[346002762,1734619839204,-500.0,0.00022191,4]
[346002763,1734619839214,-500.0,0.00022191,4]
[346002764,1734619839224,-712.26,0.00022191,4]
[346002765,1734619839234,-500.0,0.00022191,4]
[346002766,1734619839243,-500.0,0.00022191,4]
[346002767,1734619839253,-500.0,0.00022191,4]
[346002768,1734619839263,-500.0,0.00022191,4]
[346002769,1734619839275,-500.0,0.00022191,4]
[346002770,1734619839286,-500.0,0.00022191,4]
[346002771,1734619839297,-1155.02,0.00022191,4]
[346002772,1734619839306,-500.0,0.00022191,4]
[346002773,1734619839316,-526.64,0.00022191,4]
[346002774,1734619839326,-500.0,0.00022191,2]
[346002775,1734619839336,-692.32,0.00022191,4]
[346002776,1734619839346,-1941.22,0.00022191,4]
[346002777,1734619839356,-1443.45,0.00022191,4]
[346002778,1734619839367,-500.0,0.00022191,4]
[346002779,1734619839377,-212.71921463,0.00022191,4]
[346002780,1734619839387,-500.0,0.00022191,4]
[346002781,1734619839397,-500.0,0.00022191,4]
[346002782,1734619839407,-4671.05,0.00022191,4]
[346002783,1734619839417,-666.18,0.00022191,4]
[346002784,1734619839427,-500.0,0.00022191,4]
[346002785,1734619839438,-500.0,0.00022191,4]
[346002786,1734619839450,-500.0,0.00022191,4]
[346002787,1734619839459,-500.0,0.00022191,4]
[346002788,1734619839469,-500.0,0.00022191,4]
[346002789,1734619839479,-500.0,0.00022191,4]
[346002790,1734619839489,-507.17,0.00022191,4]
[346002791,1734619839499,-545.09776054,0.00022191,4]
[346002792,1734619839509,-500.0,0.00022191,4]
[346002793,1734619839520,-500.0,0.00022191,4]
[346002794,1734619839534,-500.0,0.00022191,4]
[346002795,1734619839545,-500.0,0.00022191,4]
[346002796,1734619839555,-500.0,0.00022191,4]
[346002797,1734619839565,-638.36,0.00022191,4]
[346002798,1734619839575,-500.0,0.00022191,4]
[346002799,1734619839585,-500.0,0.00022191,4]
[346002800,1734619839595,-500.0,0.00022191,4]
[346002801,1734619839605,-613.45,0.00022191,4]
[346002802,1734619839615,-500.0,0.00022191,4]
[346002803,1734619839624,-583.42,0.00022191,4]
[346002804,1734619839635,-500.0,0.00022191,4]
[346002805,1734619839645,-1342.63,0.00022191,4]
[346002806,1734619839655,-925.35,0.00022191,4]
[346002807,1734619839665,-500.0,0.00022191,4]
[346002808,1734619839675,-552.75,0.00022191,4]
[346002810,1734619839685,-500.0,0.00022191,4]
[346002811,1734619839695,-500.0,0.00022191,4]
[346002812,1734619839704,-592.13,0.00022191,4]
[346002813,1734619839714,-500.0,0.00022191,4]
[346002814,1734619839724,-500.0,0.00022191,4]
[346002815,1734619839734,-2339.55,0.00022191,4]
[346002816,1734619839743,-500.0,0.00022191,4]
[346002817,1734619839753,-500.0,0.00022191,4]
[346002819,1734619839763,-500.0,0.00022191,4]
[346002820,1734619839773,-500.0,0.00022191,4]
[346002822,1734619839790,-500.0,0.00022191,4]
[346002823,1734619839800,-1038.07,0.00022191,4]
[346002824,1734619839809,-500.0,0.00022191,4]
[346002825,1734619839819,-500.0,0.00022191,4]
[346002826,1734619839829,-500.0,0.00022191,4]
[346002827,1734619839838,-1573.39,0.00022191,4]
[346002828,1734619839848,-500.0,0.00022191,4]
[346002829,1734619839858,-1000.0,0.00022191,4]
[346002830,1734619839867,-500.0,0.00022191,4]
[346002831,1734619839877,-455.33148996,0.00022191,4]
[346002832,1734619839887,-500.0,0.00022191,4]
[346002833,1734619839896,-501.69773656,0.00022191,4]
[346002834,1734619839906,-500.0,0.00022191,4]
[346002835,1734619839915,-500.0,0.00022191,4]
[346002836,1734619839924,-500.0,0.00022191,4]
[346002837,1734619839933,-965.55,0.00022191,4]
[346002838,1734619839943,-500.0,0.00022191,4]
[346002839,1734619839952,-1681.79,0.00022191,4]
[346002840,1734619839962,-1067.32,0.00022191,4]
[346002841,1734619839971,-500.0,0.00022191,4]
[346002842,1734619839982,-1437.18,0.00022191,4]
[346002843,1734619839991,-2714.35,0.00022191,4]
[346002844,1734619840001,-500.0,0.00022191,4]
[346002845,1734619840011,-500.0,0.00022191,4]
[346002846,1734619840020,-1379.44,0.00022191,4]
[346002847,1734619840034,-1000.0,0.00022191,2]
[346002848,1734619840044,-500.0,0.00022191,4]
[346002849,1734619840054,-500.0,0.00022191,4]
[346002850,1734619840063,-500.0,0.00022191,4]
[346002851,1734619840073,-500.0,0.00022191,4]
[346002852,1734619840083,-753.13,0.00022191,4]
[346002853,1734619840093,-500.0,0.00022191,4]
[346002854,1734619840103,-500.0,0.00022191,4]
[346002855,1734619840113,-500.0,0.00022191,4]
[346002856,1734619840122,-500.0,0.00022191,4]
[346002857,1734619840132,-500.0,0.00022191,4]
[346002858,1734619840142,-1073.6,0.00022191,4]
[346002859,1734619840152,-1094.17,0.00022191,4]
[346002860,1734619840161,-500.0,0.00022191,4]
[346002861,1734619840171,-1087.63,0.00022191,4]
[346002862,1734619840181,-500.0,0.00022191,4]
[346002863,1734619840190,-500.0,0.00022191,4]
[346002864,1734619840200,-500.0,0.00022191,4]
[346002865,1734619840210,-500.0,0.00022191,4]
[346002866,1734619840219,-1456.56,0.00022191,4]
[346002867,1734619840228,-500.0,0.00022191,4]
[346002868,1734619840238,-594.1,0.00022191,4]
[346002869,1734619840247,-500.0,0.00022191,4]
[346002870,1734619840257,-500.0,0.00022191,4]
[346002871,1734619840266,-500.0,0.00022191,4]
[346002876,1734619840460,-500.0,0.00022191,4]
[346002877,1734619840477,-500.0,0.00022191,4]
[346002878,1734619840488,-500.0,0.00022191,4]
[346002879,1734619840500,-581.11,0.00022191,4]
[346002880,1734619840509,-500.0,0.00022191,4]
[346002881,1734619840519,-500.0,0.00022191,4]
[346002882,1734619840532,-2776.06,0.00022191,4]
[346002883,1734619840541,-500.0,0.00022191,4]
[346002884,1734619840550,-500.0,0.00022191,4]
[346002885,1734619840561,-545.99,0.00022191,4]
[346002886,1734619840570,-1708.04,0.00022191,4]
[346002887,1734619840580,-500.0,0.00022191,4]
[346002888,1734619840589,-500.0,0.00022191,4]
[346002889,1734619840599,-307.10804482,0.00022191,4]
[346002890,1734619840608,-505.56623855,0.00022191,4]
[346002891,1734619840617,-500.0,0.00022191,4]
[346002892,1734619840627,-500.0,0.00022191,4]
[346002893,1734619840637,-1364.7,0.00022191,4]
[346002894,1734619840646,-500.0,0.00022191,4]
[346002895,1734619840655,-500.0,0.00022191,4]
[346002896,1734619840664,-500.0,0.00022191,4]
[346002897,1734619840674,-655.37,0.00022191,4]
[346002898,1734619840683,-500.0,0.00022191,4]
[346002899,1734619840692,-1161.39,0.00022191,4]
[346002900,1734619840701,-500.0,0.00022191,4]
[346002901,1734619840711,-500.0,0.00022191,4]
[346002902,1734619840720,-516.6,0.00022191,4]
[346002903,1734619840730,-500.0,0.00022191,4]
[346002904,1734619840740,-500.0,0.00022191,4]
[346002905,1734619840750,-556.79,0.00022191,4]
[346002906,1734619840759,-150.0,0.00022248,4]
[346002907,1734619840770,-500.0,0.0002226,2]
[346002908,1734619840784,-200.0,0.00022302,2]
[346002909,1734619840794,-163.81489292,0.00022372,2]
[346002910,1734619840804,-500.415,0.0002238,2]
[346002911,1734619840814,-507.5,0.00022394,2]
[346002912,1734619840823,-2544.0,0.000224,4]
[346002913,1734619840833,-150.0,0.00022452,4]
[346002914,1734619840842,-19822.80890349,0.00022457,2]
[346002915,1734619840851,-209.0,0.0002246,2]
[346002916,1734619840861,-412.864373,0.00022465,4]